Cogmind - Beta 12 @@@ ROGUE MODE // 2023.03.15 @ 15:38:00 Player: Peregrine Result: Destroyed by S-27 Virus with Autogun Performance ------------- Evolutions (6) 3000 Regions Visited (12) 2400 Robots Destroyed (158) 790 Value Destroyed (3919) 3919 Prototype IDs (16) 320 Alien Tech Used (0) 0 Bonus (600) 600 TOTAL SCORE: 11029 Bonus ------- Follower Combat Kills 100 Entered DSFs 500 Cogmind --------- Core Integrity 0/1150 Matter 300/300 Energy 99/100 System Corruption 47% Temperature Cool (0) Movement Core (50) Location -4/Extension Parts ------- > --- POWER (2) -------- (None) > --- PROPULSION (6) --- Improved Gyrokinetic Inverter > --- UTILITY (8) ------ Enhanced Optical Array > --- WEAPON (3) ------- (None) > --- INVENTORY (5) ---- (None) Peak State ------------ > --- POWER ------------ Light Antimatter Reactor Light Antimatter Reactor > --- PROPULSION ------- Improved Gyrokinetic Inverter Improved Gyrokinetic Inverter Improved Gyrokinetic Inverter Improved Gyrokinetic Inverter > --- UTILITY ---------- Advanced Cryofiber Web Advanced Heat Sink Enhanced Optical Array Advanced Terrain Scanner Advanced Targeting Computer Cloaking Device Cloaking Device Cloaking Device > --- WEAPON ----------- Dispersion Rifle Dispersion Rifle Dispersion Rifle > --- INVENTORY -------- Neutrino Core Power Maul [Rating: 104] Favorites ----------- Power Antimatter Reactor Engine Light Ion Engine Power Core Light Nuclear Core Reactor Antimatter Reactor Propulsion Improved Gyrokinetic Inverter Treads Light Treads Leg Aluminum Leg Wheel Wheel Hover Unit Improved Gyrokinetic Inverter Flight Unit Flight Unit Utility Advanced Targeting Computer Device Improved Heat Sink Storage Small Storage Unit Processor Advanced Targeting Computer Hackware Authchip [R/Combat] Protection Hardened Medium Armor Plating Weapon Medium Laser Energy Gun Medium Laser Energy Cannon Phase Cannon Ballistic Gun Flak Gun Ballistic Cannon Flak Cannon Launcher Smartbomb Launcher Special Weapon Enhanced Flamer Impact Weapon Power Maul Slashing Weapon Great Axe Piercing Weapon Spear Build | -11 -10 -9 -9 -8 -7 -7 -7 -6 -5 -5 -4 -4 ------- Run | Jun Mat Mat Sto Mat Fac Low Low Fac Fac DSF Fac Ext Slots Evolved 12 | . . 2 . 2 2 . . 2 2 . 2 . Power 1 | . . . . . 1 . . . . . . . Propulsion 4 | . . 1 . 1 . . . 1 . . 1 . Utility 6 | . . 1 . 1 1 . . 1 1 . 1 . Weapon 1 | . . . . . . . . . 1 . . . Parts Attached 314 | 7 2 18 37 28 52 2 8 60 5 20 12 63 Power 47 | 1 1 3 7 3 3 . 1 12 1 . 2 13 Engine 25 | 1 . 3 7 . 1 . . 6 . . 2 5 Core 13 | . 1 . . 3 . . 1 5 . . . 3 Reactor 9 | . . . . . 2 . . 1 1 . . 5 Propulsion 88 | 2 . 4 8 13 24 . . 14 . 11 5 7 Treads 2 | . . . 2 . . . . . . . . . Leg 40 | 2 . 4 3 9 15 . . 2 . . 3 2 Wheel 9 | . . . . . . . . 9 . . . . Hover 19 | . . . . 3 3 . . . . 9 2 2 Flight 18 | . . . 3 1 6 . . 3 . 2 . 3 Utility 86 | 2 1 5 13 6 20 . 5 12 1 6 2 13 Device 42 | 1 . 3 6 4 5 . 2 5 1 3 1 11 Storage 8 | 1 . 2 1 . 3 . . 1 . . . . Processor 17 | . 1 . 1 . 6 . 2 5 . 1 . 1 Hackware 2 | . . . . 1 . . . . . 1 . . Protection 17 | . . . 5 1 6 . 1 1 . 1 1 1 Artifact . | . . . . . . . . . . . . . Weapon 93 | 2 . 6 9 6 5 2 2 22 3 3 3 30 Energy Gun 48 | 2 . 3 5 3 3 . . 11 2 1 3 15 Energy Cannon 6 | . . . . . . . . 6 . . . . Ballistic Gun 16 | . . 3 4 3 1 . 1 . . . . 4 Ballistic Cannon 9 | . . . . . . 1 1 4 1 2 . . Launcher 3 | . . . . . . . . . . . . 3 Special Weapon 2 | . . . . . . 1 . 1 . . . . Impact Weapon 2 | . . . . . . . . . . . . 2 Slashing Weapon 6 | . . . . . . . . . . . . 6 Piercing Weapon 1 | . . . . . 1 . . . . . . . Special Melee Weapon . | . . . . . . . . . . . . . Unidentified Prototypes 14 | . . 1 6 1 . . . 6 . . . . Corrupted Parts 10 | . . 1 1 . 2 . . . . . . 6 System Corruption 52 | . . 4 3 . 7 . . . . . . 38 Parts Lost 77 | . . 5 4 9 1 1 5 3 . 14 1 34 Power 16 | . . 1 . 2 . 1 . 1 . 1 1 9 Propulsion 25 | . . 1 2 4 . . 3 2 . 4 . 9 Utility 16 | . . 1 1 1 . . 1 . . 5 . 7 Weapon 20 | . . 2 1 2 1 . 1 . . 4 . 9 Highest Loss Streak 16 | . . 3 1 8 1 1 4 3 . 7 1 16 To Critical Strikes . | . . . . . . . . . . . . . Average Slot Usage (%) 85 | . 100 88 91 83 94 87 59 83 98 73 60 79 Engine 3 | . 4 4 10 . . . . 4 . . 1 . Core 2 | . 9 1 . 6 2 . . 4 6 4 . 1 Reactor 3 | . . . . . 10 10 5 . 4 . . 5 Leg 12 | . 28 30 8 15 23 23 9 3 . . 1 . Wheel 3 | . . . . . . . . 19 29 2 . . Hover 5 | . . . . 1 1 . . . . 17 28 22 Flight 3 | . . . 14 9 3 . . 1 . 1 . . Device 9 | . 14 10 5 14 7 7 4 3 9 4 2 18 Storage 4 | . 11 9 3 . 4 7 5 4 5 5 . . Processor 16 | . 2 11 18 9 21 15 21 26 23 22 15 13 Hackware 1 | . . . . 9 1 . . . . 3 5 2 Protection 1 | . . . 2 1 2 7 1 . . . 2 1 Energy Gun 9 | . 28 13 12 12 11 . . 8 17 3 3 5 Ballistic Gun 3 | . . 6 8 3 1 5 4 . . . . 1 Naked Turns . | . . . . . . . . . . . . . Heaviest Build 59 | 13 15 20 25 15 59 56 38 55 56 56 15 49 Greatest Support 63 | 20 20 30 40 59 63 39 39 56 56 60 62 60 Greatest Overweight (x) 8 | . . . 2 4 4 1 2 4 . 1 1 8 Average Overweight (x) . | . . . . . . . . . . . . . Largest Inventory Capacity 15 | 8 8 10 8 5 10 8 8 15 15 15 15 5 Average Capacity 7 | 7 7 8 5 5 7 8 7 12 15 15 5 5 Most Carried 15 | 3 4 7 8 5 10 8 8 15 14 15 6 5 Average Carried 5 | 1 2 3 5 3 7 7 7 10 12 9 3 4 Final Capacity 15 | 8 5 8 5 5 8 8 5 15 15 15 5 5 Final Carried 15 | 2 4 5 5 5 8 8 5 15 12 7 5 . Class Distribution -------------------- 51% | Scavenger-Mutant 43% | Mutant Dominant Class ---------------- Mutant | -10/Materials Mutant | -9/Materials Scavenger-Mutant | -9/Storage Scavenger-Mutant | -8/Materials Scavenger-Mutant | -7/Factory Scavenger-Mutant | -7/Lower Caves Mutant | -7/Lower Caves Scavenger-Mutant | -6/Factory Scavenger-Gunner | -5/Factory Mutant | -5/DSF Mutant | -4/Factory Mutant | -4/Extension Resources | -11 -10 -9 -9 -8 -7 -7 -7 -6 -5 -5 -4 -4 ----------- Run | Jun Mat Mat Sto Mat Fac Low Low Fac Fac DSF Fac Ext Matter Collected 4320 | 270 20 291 632 344 581 68 69 808 30 70 29 1108 Remotely . | . . . . . . . . . . . . . Salvage Created 6783 | 291 153 891 1262 697 565 88 25 1064 30 57 29 1631 Parts 369 | 23 12 48 92 37 32 3 3 42 1 3 4 69 Haulers Intercepted 12 | . . . 4 1 1 . . 2 . . . 4 Recyclers Shooed 17 | . 1 8 . 3 . . . 3 . . . 2 Parts Field Recycled . | . . . . . . . . . . . . . Retrieved Matter . | . . . . . . . . . . . . . Parts Self-Destructed 5 | . . . . . . 2 3 . . . . . Prevented 1 | . . . . . . 1 . . . . . . Kills | -11 -10 -9 -9 -8 -7 -7 -7 -6 -5 -5 -4 -4 ------- Run | Jun Mat Mat Sto Mat Fac Low Low Fac Fac DSF Fac Ext Combat Hostiles Destroyed 77 | . 3 15 19 10 6 . 1 8 . 1 . 14 Melee 1 | . . . . . . . . . . . . 1 Guns 58 | . 3 13 19 10 6 . 1 3 . . . 3 Cannons 6 | . . . . . . . . 5 . 1 . . AOE 10 | . . 2 . . . . . . . . . 8 Classes Destroyed 15 | 3 2 3 2 2 . . 1 1 . 1 . . Worker 24 | 3 . 1 10 . 3 . . 4 1 . . 2 Builder 9 | . 1 2 . . . . . 1 . . . 5 Tunneler 13 | 7 . . . . . . . 1 . . . 5 Hauler 12 | . . . 4 1 1 . . 2 . . . 4 Recycler 14 | 1 . 3 1 1 2 . . 3 . . . 3 Mechanic 2 | . . . . 2 . . . . . . . . Operator 3 | . . 1 . . . . . . . . 1 1 Watcher 4 | . . . 2 . . . . 1 . . . 1 Swarmer 13 | . . 4 4 . . . . . . . . 5 Grunt 35 | . 3 7 8 7 4 . . 2 . . . 4 Duelist 2 | . . . . 1 1 . . . . . . . Sentry 16 | . . 4 7 2 1 . . 1 . . . 1 Specialist 1 | . . . . . . . . . . 1 . . Hunter 8 | . . . . . . . . 4 . . . 4 Programmer 2 | . . . . . . . 1 1 . . . . Best Kill Streak 11 | 2 1 6 11 5 2 . 1 6 1 1 1 7 Combat Bots Only 5 | . 1 3 4 5 2 . 1 2 . 1 . 4 Max Kills in Single Turn 7 | 1 1 2 2 1 1 . 1 1 1 1 1 7 Gunslinging 1 | . . 1 1 . . . . . . . . . Exploded 4 | . . 1 . . . . . . . . . 4 Melee 1 | . . . . . . . . . . . . 1 Uniques/NPCs Destroyed . | . . . . . . . . . . . . . Combat | -11 -10 -9 -9 -8 -7 -7 -7 -6 -5 -5 -4 -4 -------- Run | Jun Mat Mat Sto Mat Fac Low Low Fac Fac DSF Fac Ext Damage Taken 11068 | . 253 714 768 1153 675 82 953 701 . 2190 134 3445 Core 2997 | . 74 135 182 437 136 . 261 64 . 549 . 1159 Absorbed by Shields 91 | . . . . . . . . . . 91 . . Regen/Repaired (Parts) 140 | . . . 28 45 54 . . 13 . . . . Core Remaining (%) 55 | 100 70 . 20 20 . . 43 92 . 45 . . Volleys Fired 471 | 31 20 88 94 54 33 3 6 61 1 7 2 71 Largest 3 | 2 2 2 2 2 2 2 2 2 3 3 1 3 Hottest 264 | 100 100 100 112 119 124 83 72 170 240 160 88 264 Shots Fired 799 | 62 40 130 168 89 53 9 8 97 3 15 2 123 Gun 722 | 62 40 130 168 89 53 8 5 38 3 9 2 115 Cannon 69 | . . . . . . 1 3 59 . 6 . . Launcher 8 | . . . . . . . . . . . . 8 Special . | . . . . . . . . . . . . . Kinetic 257 | . . 41 92 31 2 5 8 38 . 6 . 34 Thermal 422 | 62 40 52 54 55 29 . . 59 3 9 2 57 Explosive 8 | . . . . . . . . . . . . 8 Electromagnetic 112 | . . 37 22 3 22 4 . . . . . 24 Robot Hit Streak 40 | 4 5 12 13 17 13 12 9 40 11 12 8 20 Robot Miss Streak 6 | 6 4 6 6 4 1 1 2 1 . 1 . 4 Penetration Max . | . . . . . . . . . . . . . Secondary Targets 5 | . . 1 1 2 1 . . . . . . . Max Gunslinging Chain 1 | . . 1 1 1 1 . . . . . . . Shots Hit Robots 558 | 29 23 91 99 62 43 7 8 70 1 13 2 110 Core Hits 274 | 12 9 45 51 28 21 5 14 27 1 6 2 53 Critical Kills 5 | . . 1 . . . . . 2 . . . 2 Critical Parts Destroyed 7 | . . . 1 . . . . . . . . 6 Critical Strikes 40 | 2 4 8 6 4 . . . 5 . 1 . 10 Burn 25 | 2 4 7 5 4 . . . 1 . . . 2 Destroy 10 | . . 1 1 . . . . 2 . 1 . 5 Blast 2 | . . . . . . . . 2 . . . . Smash 3 | . . . . . . . . . . . . 3 Melee Attacks 24 | . . . . . . . . . . . . 24 Impact 6 | . . . . . . . . . . . . 6 Slashing 18 | . . . . . . . . . . . . 18 Piercing . | . . . . . . . . . . . . . Sneak Attacks 13 | . . . . . . . . . . . . 13 Combat Hostiles . | . . . . . . . . . . . . . Follow-up Attacks 4 | . . . . . . . . . . . . 4 Damage Inflicted 12875 | 375 292 1370 1375 1056 925 129 211 2010 23 400 57 4652 Guns 7983 | 375 292 1243 1375 1055 790 91 87 538 23 164 53 1897 Cannons 1833 | . . . . . . 38 115 1464 . 216 . . Explosions 1616 | . . 126 . . 135 . . . . . . 1355 Melee 1368 | . . . . . . . . . . . . 1368 Ramming 75 | . . 1 . 1 . . 9 8 . 20 4 32 Kinetic 3306 | . . 409 690 381 10 85 202 908 . 216 . 405 Thermal 5340 | 375 292 506 553 658 597 . . 1094 23 164 53 1025 Explosive 1355 | . . . . . . . . . . . . 1355 Electromagnetic 1431 | . . 454 132 16 318 44 . . . . . 467 Impact 408 | . . . . . . . . . . . . 408 Slashing 960 | . . . . . . . . . . . . 960 Piercing . | . . . . . . . . . . . . . Highest Corruption 47 | . . 4 7 . 7 7 9 2 . 5 2 47 Average Corruption 12 | . . 4 6 . 3 7 7 2 . 3 1 30 Corruption Purged . | . . . . . . . . . . . . . Corruption Blocked . | . . . . . . . . . . . . . Effects 146 | . . 2 31 . 9 20 5 11 . 2 . 66 Message Errors 33 | . . 2 8 . . 3 1 4 . . . 15 Matter Fused 37 | . . . 8 . 4 5 2 1 . 2 . 15 Heat Flow Errors 21 | . . . 6 . 1 4 1 1 . . . 8 Energy Discharges 16 | . . . 3 . 3 1 . . . . . 9 Parts Rejected 1 | . . . . . . . . . . . . 1 Parts Fused 1 | . . . . . . 1 . . . . . . Data Loss (minor) 12 | . . . 4 . 1 2 . 2 . . . 3 Data Loss (major) 5 | . . . 1 . . . . 2 . . . 2 Misfires 5 | . . . . . . 3 . . . . . 2 Alerts 2 | . . . . . . 1 1 . . . . . Misdirections 7 | . . . . . . . . . . . . 7 Weapon Failures 6 | . . . 1 . . . . 1 . . . 4 Overload Shots . | . . . . . . . . . . . . . Overflow Damage 579 | . . . . . . . . 80 . 5 . 494 Projectiles 85 | . . . . . . . . 80 . 5 . . Explosions 58 | . . . . . . . . . . . . 58 Melee 436 | . . . . . . . . . . . . 436 Knockbacks 17 | . . . . . . . 8 5 . 4 . . Impact . | . . . . . . . . . . . . . Kinetic 14 | . . . . . . . 7 4 . 3 . . Secondary 3 | . . . . . . . 1 1 . 1 . . Self-Inflicted Damage 141 | . . 72 . . . . 4 4 . 9 1 51 Shots 3 | . . 2 . . . . . . . . . 1 Rammed 14 | . . . . 1 . . 3 2 . 4 2 2 Targets Rammed 15 | . . 1 . 1 . . 3 2 . 4 2 2 Kicked 1 | . . 1 . . . . . . . . . . Crushed . | . . . . . . . . . . . . . Highest Temperature 537 | 156 294 111 282 537 419 204 162 360 102 165 3 451 Average Temperature 105 | 47 102 34 76 135 156 56 54 114 54 70 1 161 Received Heat Transfer 1898 | . 102 165 261 495 312 . 138 90 . 54 18 263 Effects 24 | . 4 . 2 8 4 . . 2 . . . 4 Shutdowns 5 | . . . . . 3 . . 1 . . . 1 Energy Bleed 4 | . 1 . 2 . . . . . . . . 1 Interference 6 | . 3 . . 1 . . . . . . . 2 Damage (minor) 2 | . . . . . 1 . . 1 . . . . Damage (major) 5 | . . . . 5 . . . . . . . . Damage (core) 2 | . . . . 2 . . . . . . . . Siege Activations . | . . . . . . . . . . . . . Robots Corrupted 2 | . . . . . . . . . . . . 2 Combat Hostiles 2 | . . . . . . . . . . . . 2 Parts Fried 8 | . . 1 . . 1 . . . . . . 6 Impact Corruptions 6 | . . . . . . . . . . 1 . 5 Robots Melted 1 | . . . . . . . . 1 . . . . Combat Hostiles . | . . . . . . . . . . . . . Parts Melted 19 | 3 . 2 5 3 . . . 6 . . . . Heat Transferred 12492 | 1258 1147 1778 1739 1702 1088 . . 1745 37 259 74 1665 Parts Sabotaged . | . . . . . . . . . . . . . Parts Stolen . | . . . . . . . . . . . . . Parts Stripped . | . . . . . . . . . . . . . Power Chain Reactions 3 | . . 2 . . 1 . . . . . . . Missiles Intercepted . | . . . . . . . . . . . . . Alert | -11 -10 -9 -9 -8 -7 -7 -7 -6 -5 -5 -4 -4 ------- Run | Jun Mat Mat Sto Mat Fac Low Low Fac Fac DSF Fac Ext Peak Influence 397 | 45 97 326 220 397 160 . . 199 75 95 114 282 Initial 80 | . 6 9 80 57 30 . . 18 68 52 49 50 Average 80 | 17 51 111 91 190 72 . . 38 69 26 89 81 Maximum Alert Level 1 | . . 1 1 1 . . . . . . . 1 Low Security (%) 91 | 100 100 90 91 51 100 . . 100 100 100 100 87 Level 1 8 | . . 9 8 48 . . . . . . . 12 Level 2 . | . . . . . . . . . . . . . Level 3 . | . . . . . . . . . . . . . Level 4 . | . . . . . . . . . . . . . Level 5 . | . . . . . . . . . . . . . High Security . | . . . . . . . . . . . . . Max Security . | . . . . . . . . . . . . . Squads Dispatched 23 | . 1 3 2 . 2 . . 3 . 3 4 5 Investigation 9 | . . 1 . . 1 . . 1 . . 2 4 Extermination 2 | . . . . . 1 . . 1 . . . . Reinforcement 11 | . 1 2 1 . . . . 1 . 3 2 1 Assault . | . . . . . . . . . . . . . Garrison 1 | . . . 1 . . . . . . . . . Intercept . | . . . . . . . . . . . . . Searches Triggered . | . . . . . . . . . . . . . Construction Impeded 3 | . . 1 . . . . . . . . 1 1 Haulers Reinforced 1 | . . . . . . . . 1 . . . . Active Scanning Responses . | . . . . . . . . . . . . . Cargo Convoy Interrupts . | . . . . . . . . . . . . . Stealth | -11 -10 -9 -9 -8 -7 -7 -7 -6 -5 -5 -4 -4 --------- Run | Jun Mat Mat Sto Mat Fac Low Low Fac Fac DSF Fac Ext Distress Signals 7 | . 2 . 2 1 . . . . . . . 2 Communications Jammed . | . . . . . . . . . . . . . Distress Signals . | . . . . . . . . . . . . . Times Spotted 158 | . 13 22 19 16 7 1 12 10 . 19 6 33 Peak Tracking Total 11 | . 7 3 3 9 4 1 11 2 . 9 4 9 Tactical Retreats 17 | . 1 2 . 3 . 1 1 1 . 4 . 4 Traps | -11 -10 -9 -9 -8 -7 -7 -7 -6 -5 -5 -4 -4 ------- Run | Jun Mat Mat Sto Mat Fac Low Low Fac Fac DSF Fac Ext Traps Triggered 10 | . 1 . 3 . . . . 1 . 2 1 2 Indirectly . | . . . . . . . . . . . . . Trap Hack Attempts . | . . . . . . . . . . . . . Triggered . | . . . . . . . . . . . . . Disarmed . | . . . . . . . . . . . . . Reprogrammed . | . . . . . . . . . . . . . Reused . | . . . . . . . . . . . . . Traps Extracted . | . . . . . . . . . . . . . Installed . | . . . . . . . . . . . . . Triggered 1 | . . . . . . . . . . 1 . . Machines | -11 -10 -9 -9 -8 -7 -7 -7 -6 -5 -5 -4 -4 ---------- Run | Jun Mat Mat Sto Mat Fac Low Low Fac Fac DSF Fac Ext Machines Disabled 2 | . . . . 1 . . . . . . . 1 Max in Single Turn 1 | . . . . 1 . . . . . . . 1 Machines Repaired . | . . . . . . . . . . . . . Machines Sabotaged . | . . . . . . . . . . . . . Overloaded Fab Kills . | . . . . . . . . . . . . . Hacking | -11 -10 -9 -9 -8 -7 -7 -7 -6 -5 -5 -4 -4 --------- Run | Jun Mat Mat Sto Mat Fac Low Low Fac Fac DSF Fac Ext Machines Accessed 33 | . 2 3 9 5 3 . . 2 2 . 2 5 Terminals 24 | . 2 1 8 4 . . . 1 1 . 2 5 Fabricators 2 | . . . . . 1 . . 1 . . . . Repair Stations 3 | . . 1 1 1 . . . . . . . . Recycling Units . | . . . . . . . . . . . . . Scanalyzers 3 | . . 1 . . 1 . . . 1 . . . Garrison Access 1 | . . . . . 1 . . . . . . . Total Hacks 84 | . 6 9 25 12 5 . . 6 4 . 5 12 Successful 43 | . 3 6 12 8 2 . . 4 3 . 1 4 Failed 41 | . 3 3 13 4 3 . . 2 1 . 4 8 Catastrophic 8 | . . . 5 . 1 . . . . . 1 1 Database Lockouts . | . . . . . . . . . . . . . Manual 41 | . 6 2 16 10 . . . 2 . . 2 3 Terminals 61 | . 6 2 23 10 . . . 2 1 . 5 12 Fabricators 5 | . . . . . 1 . . 4 . . . . Repair Stations 6 | . . 2 2 2 . . . . . . . . Recycling Units . | . . . . . . . . . . . . . Scanalyzers 10 | . . 5 . . 2 . . . 3 . . . Garrison Access 2 | . . . . . 2 . . . . . . . Terminal Hacks 16 | . 2 1 7 1 . . . . 1 . 1 3 Record 1 | . . . 1 . . . . . . . . . Prototype ID Bank 1 | . . . 1 . . . . . . . . . Open Door 5 | . . . 2 . . . . . . . 1 2 Open DSF 1 | . . . . . . . . . 1 . . . Alert Level 1 | . . . . . . . . . . . . 1 Unreport Threat 7 | . 2 1 3 1 . . . . . . . . Fabricator Hacks 4 | . . . . . 1 . . 3 . . . . Load Schematic 1 | . . . . . . . . 1 . . . . Build 3 | . . . . . 1 . . 2 . . . . Repair Station Hacks 5 | . . 1 2 2 . . . . . . . . Scan Component 3 | . . 1 1 1 . . . . . . . . Repair 2 | . . . 1 1 . . . . . . . . Recycling Unit Hacks . | . . . . . . . . . . . . . Scanalyzer 7 | . . 4 . . 1 . . . 2 . . . Insert Component 4 | . . 2 . . 1 . . . 1 . . . Analyze 3 | . . 2 . . . . . . 1 . . . Garrison Access Hacks . | . . . . . . . . . . . . . Unauthorized Hacks 11 | . 1 . 3 5 . . . 1 . . . 1 Terminals 11 | . 1 . 3 5 . . . 1 . . . 1 Assimilate 2 | . . . . 1 . . . . . . . 1 Botnet 9 | . 1 . 3 4 . . . 1 . . . . Fabricators . | . . . . . . . . . . . . . Repair Stations . | . . . . . . . . . . . . . Recycling Units . | . . . . . . . . . . . . . Scanalyzers . | . . . . . . . . . . . . . Garrison Access . | . . . . . . . . . . . . . Data Cores Recovered . | . . . . . . . . . . . . . Used . | . . . . . . . . . . . . . Hacking Detections 27 | . 2 3 8 3 2 . . 2 1 . 2 4 Full Trace Events 6 | . . . . . 1 . . 1 . . 1 3 Feedback Events 1 | . . . . . . . . . . . 1 . Corruption 1 | . . . . . . . . . . . 1 . Feedback Blocked . | . . . . . . . . . . . . . Robot Schematics Acquired . | . . . . . . . . . . . . . Robots Built 1 | . . . . . . . . 1 . . . . Authchips . | . . . . . . . . . . . . . Time 76 | . . . . . . . . 76 . . . . Total Robot Build Rating 5 | . . . . . . . . 5 . . . . Part Schematics Acquired 2 | . . 2 . . . . . . . . . . Parts Built 4 | . . . . . 2 . . 2 . . . . Authchips . | . . . . . . . . . . . . . Time 94 | . . . . . 58 . . 36 . . . . Total Part Build Rating 20 | . . . . . 14 . . 6 . . . . Parts Repaired 2 | . . . 1 1 . . . . . . . . Time 76 | . . . 38 38 . . . . . . . . Parts Recycled . | . . . . . . . . . . . . . Recycled Matter . | . . . . . . . . . . . . . Retrieved Matter . | . . . . . . . . . . . . . Retrieved Components . | . . . . . . . . . . . . . Parts Scanalyzed 3 | . . 2 . . . . . . 1 . . . Part Schematics Acquired 2 | . . 2 . . . . . . . . . . Parts Damaged . | . . . . . . . . . . . . . Bothacking | -11 -10 -9 -9 -8 -7 -7 -7 -6 -5 -5 -4 -4 ------------ Run | Jun Mat Mat Sto Mat Fac Low Low Fac Fac DSF Fac Ext Used RIF Installer . | . . . . . . . . . . . . . Robots Hacked . | . . . . . . . . . . . . . Non-combat . | . . . . . . . . . . . . . Combat . | . . . . . . . . . . . . . Robot Hacks Applied . | . . . . . . . . . . . . . Relay Couplers Released . | . . . . . . . . . . . . . Fabnet Peak Effective % . | . . . . . . . . . . . . . Robots Rewired 4 | . . . . . . . . . 1 . . 3 Allies Hacked . | . . . . . . . . . . . . . Hacks Repelled . | . . . . . . . . . . . . . Allies | -11 -10 -9 -9 -8 -7 -7 -7 -6 -5 -5 -4 -4 -------- Run | Jun Mat Mat Sto Mat Fac Low Low Fac Fac DSF Fac Ext Total Allies 10 | . . . . 1 . . . 1 1 . . 7 Largest Group 4 | . . . . 1 . . . 1 2 2 . 4 Highest-Rated Group 125 | . . . . 10 . . . 19 48 48 . 125 Highest-Rated Ally 51 | . . . . 10 . . . 19 29 29 . 51 Total Orders 3 | . . . 2 1 . . . . . . . . FOLLOW 1 | . . . . 1 . . . . . . . . EXPLORE 2 | . . . 2 . . . . . . . . . Ally Attacks 25 | . . . . . . . . . . 10 . 15 Total Damage 588 | . . . . . . . . . . 170 . 418 Kills 2 | . . . . . . . . . . . . 2 Allies Corrupted . | . . . . . . . . . . . . . Allies Melted . | . . . . . . . . . . . . . Intel | -11 -10 -9 -9 -8 -7 -7 -7 -6 -5 -5 -4 -4 ------- Run | Jun Mat Mat Sto Mat Fac Low Low Fac Fac DSF Fac Ext Robot Analysis Total . | . . . . . . . . . . . . . Derelict Logs Recovered 2 | . . . . . . 1 1 . . . . . Drone Launches 17 | . . . 17 . . . . . . . . . Drone Recoveries 3 | . . . 3 . . . . . . . . . Exploration | -11 -10 -9 -9 -8 -7 -7 -7 -6 -5 -5 -4 -4 ------------- Run | Jun Mat Mat Sto Mat Fac Low Low Fac Fac DSF Fac Ext Turns Passed 7496 | 454 259 812 978 548 831 615 134 1083 105 161 201 1315 Spaces Moved 4647 | 291 140 349 583 309 375 364 130 720 107 123 237 919 Core 388 | 7 . . . 19 . . 60 124 . . 109 69 Treads 80 | . . . 80 . . . . . . . . . Legs 1759 | 284 140 349 112 99 341 364 70 . . . . . Wheels 715 | . . . . . . . . 591 107 17 . . Hover 1079 | . . . . 29 15 . . . . 106 128 801 Flight 626 | . . . 391 162 19 . . 5 . . . 49 Fastest Speed 29 | 50 120 120 34 34 34 100 50 35 84 54 46 29 Average Speed 92 | 118 120 120 72 77 118 162 78 88 84 60 59 66 Slowest Speed 450 | 120 120 120 260 250 450 183 180 250 84 101 100 450 Overloaded Moves . | . . . . . . . . . . . . . Propulsion Burnouts . | . . . . . . . . . . . . . Robots Hopped 2 | . . . 1 1 . . . . . . . . Cave-ins Triggered . | . . . . . . . . . . . . . Exploration Rate (%) 29 | 12 31 22 65 26 3 61 20 10 4 87 5 42 Regions Visited 12 Branch Regions 4 Pre-discovered Areas . | . . . . . . . . . . . . . Known Exits Taken 4 | . . . . . . . 1 1 1 . 1 . Unknown Exits Taken 7 | 1 1 1 1 1 1 1 . . . . . . Scrap Searched 1 | . . . . . . 1 . . . . . . Spaces Dug 4 | . . . . . . . . 4 . . . . Terrain Destroyed 113 | . . 4 . . 4 . . 13 . . . 92 Melee . | . . . . . . . . . . . . . Projectile 18 | . . . . . . . . 13 . . . 5 AOE 95 | . . 4 . . 4 . . . . . . 87 Terrain Rammed . | . . . . . . . . . . . . . Walls Destroyed . | . . . . . . . . . . . . . Machines Disabled . | . . . . . . . . . . . . . Actions | -11 -10 -9 -9 -8 -7 -7 -7 -6 -5 -5 -4 -4 --------- Run | Jun Mat Mat Sto Mat Fac Low Low Fac Fac DSF Fac Ext Total 7067 | 338 191 613 973 542 710 382 153 1067 118 202 299 1479 Wait 1178 | 1 24 134 199 116 169 9 . 162 . 9 29 326 Move 4631 | 290 139 348 580 306 374 363 129 719 106 122 236 919 Hop 2 | . . . 1 1 . . . . . . . . Pick Up 192 | 9 4 15 16 20 41 2 . 32 . 17 6 30 Fast Attach 67 | . . . 20 4 14 1 1 7 . 2 3 15 Attach 142 | 7 . 11 6 12 12 . 1 32 2 16 9 34 Detach 49 | . . 2 3 1 3 . 3 19 . 1 5 12 Swap 105 | . 2 7 11 12 26 1 6 21 3 2 . 14 Drop 157 | . 2 7 30 15 38 3 4 12 1 15 7 23 Fire 471 | 31 20 88 94 54 33 3 6 61 1 7 2 71 Melee 18 | . . . . . . . . . . . . 18 Ram 14 | . . . . 1 . . 3 2 . 4 2 2 Kick 1 | . . 1 . . . . . . . . . . Crush . | . . . . . . . . . . . . . Escape Stasis 7 | . . . . . . . . . . 7 . . Rewire 26 | . . . 6 . . . . . 5 . . 15 Trap . | . . . . . . . . . . . . . Miscellaneous 7 | . . . 7 . . . . . . . . . Route ------- -11/Junkyard -10/Materials -9/Materials -9/Storage -8/Materials -7/Factory -7/Lower Caves -7/Lower Caves -6/Factory -5/Factory -5/DSF -4/Factory -4/Extension History --------- Turn | Location | Event 3 | -11/Junkyard | Discovered new exit (range 15) 455 | -11/Junkyard | Entered Materials 456 | -10/Materials | Build established: Mutant 617 | -10/Materials | Discovered new exit (range 5) 714 | -10/Materials | Entered another Materials area 714 | -9/Materials | Evolved 2 slots: Propulsion x1, Utility x1 974 | -9/Materials | Lost 3 parts (1n1u1w) 1429 | -9/Materials | Discovered new exit (range 15) 1526 | -9/Materials | Entered Storage 1550 | -9/Storage | Found Prototype Protection 1551 | -9/Storage | Identified Lgt. Regenerative Plating 1806 | -9/Storage | Build established: Scavenger-Mutant 1936 | -9/Storage | Core integrity fell below 50% 2222 | -9/Storage | Garrison activated, responded to threat 2359 | -9/Storage | Discovered new exit (range 16) 2426 | -9/Storage | Repaired Imp. Heat Sink 2504 | -9/Storage | Entered Materials 2504 | -8/Materials | Evolved 2 slots: Propulsion x1, Utility x1 2637 | -8/Materials | Core integrity fell below 50% 2711 | -8/Materials | Lost 8 parts (1p4n1u2w) 2969 | -8/Materials | Repaired Carbon-fiber Leg 3024 | -8/Materials | Discovered new exit (range 8) 3052 | -8/Materials | Entered Factory 3052 | -7/Factory | Evolved 2 slots: Power x1, Utility x1 3310 | -7/Factory | Fabricated Antimatter Reactor (x2) 3627 | -7/Factory | Discovered new exit (range 11) 3883 | -7/Factory | Entered Lower Caves 4136 | -7/Lower Caves | Spotted B-75 Beast 4269 | -7/Lower Caves | Encountered a Warlord checkpoint 4479 | -7/Lower Caves | Discovered new exit (range 12) 4498 | -7/Lower Caves | Entered another Lower Caves area 4499 | -7/Lower Caves | Spotted B-75 Beast 4550 | -7/Lower Caves | Identified exit to Factory 4566 | -7/Lower Caves | Ambushed by research squad 4627 | -7/Lower Caves | Lost 4 parts (2n1u1w) 4629 | -7/Lower Caves | Core integrity fell below 50% 4632 | -7/Lower Caves | Entered Factory 4632 | -6/Factory | Evolved 2 slots: Propulsion x1, Utility x1 4694 | -6/Factory | Build established: Mutant 4958 | -6/Factory | Discovered new exit (range 9) 5035 | -6/Factory | Lost 3 parts (1p2n) 5137 | -6/Factory | Build established: Scavenger-Mutant 5554 | -6/Factory | Fabricated R-10 Processor (x1) 5603 | -6/Factory | Fabricated Imp. Terrain Scanner (x2) 5642 | -6/Factory | Identified exit to Factory 5715 | -6/Factory | Entered another Factory area 5715 | -5/Factory | Accompanied by 1 ally 5715 | -5/Factory | Evolved 2 slots: Utility x1, Weapon x1 5820 | -5/Factory | Identified exit to DSF 5820 | -5/Factory | Entered DSF 5820 | -5/DSF | Accompanied by 2 allies 5851 | -5/DSF | Additional patrols routed to DSF 5889 | -5/DSF | Lost 7 parts (4n2u1w) 5915 | -5/DSF | Discovered new exit (range 16) 5978 | -5/DSF | Core integrity fell below 50% 5981 | -5/DSF | Entered Factory 5981 | -4/Factory | Evolved 2 slots: Propulsion x1, Utility x1 5982 | -4/Factory | Identified exit to Extension 6005 | -4/Factory | Lost 6 parts (1p2u3w) 6111 | -4/Factory | Build established: Mutant 6182 | -4/Factory | Entered Extension 6258 | -4/Extension | Rescued a captive Derelict 6259 | -4/Extension | Rescued a captive Derelict 6338 | -4/Extension | Rescued a captive Derelict 6338 | -4/Extension | Rescued a captive Derelict 6434 | -4/Extension | System corruption reached 10% 6580 | -4/Extension | System corruption reached 30% 6682 | -4/Extension | Lost 9 parts (3p3n3w) 6857 | -4/Extension | Disrupted transfer network 7239 | -4/Extension | Spotted B-86 Titan 7420 | -4/Extension | Lost 6 parts (2p1n2u1w) 7445 | -4/Extension | Core integrity fell below 50% 7482 | -4/Extension | Spotted B-86 Titan 7493 | -4/Extension | Core integrity fell below 20% 7497 | -4/Extension | Destroyed by S-27 Virus with Autogun Last Messages --------------- 07477_ Adv. Cryofiber Web destroyed. 07477_ System corrupted by crushing effect (+4). 07477_ Adv. Targeting Computer destroyed. 07477_ System corrupted by crushing effect (+2). 07483_ Slug penetrates Wall. 07485_ Lgt. Ion Engine destroyed. 07485_ Slug penetrates Wall. 07486_ System corrupted: Matter fused (-5). 07486_ VTOL Module destroyed. 07486_ Great Axe blasted off. 07486_ Penetrated by Slug. 07486_ Slug penetrates Wall. 07486_ Imp. Gyrokinetic Inverter destroyed. 07486_ Penetrated by Slug. 07489_ Imp. Gyrokinetic Inverter destroyed. 07489_ Penetrated by Slug. 07489_ Imp. Ion Engine destroyed. 07489_ Machine disabled. 07492_ Penetrated by Slug. 07494_ Great Axe destroyed. Map ----- +----------------------------------------------------+ | ?????????????????????????????????????????????????? | | ?????????????????????????????????????????????????? | | ?????????????????????????????????????????????????? | | ?????????????????????????????????????????????????? | | ?????????????????????????????????????????????????? | | ?????????????????????????????????????????????????? | | ?????????????????????????????????????????????????? | | ?????????????????????????????????????????????????? | | ?? ?????????? ???????????????????????????????????? | | ?? ?????????? ???????????????????????????????????? | | ?? ?????????? ???????????????????????????????????? | | ?? ?????????? ???????????????????????????????????? | | ?? ?????????# ???????????????????????????????????? | | ?# #????????# #??????????????????????????????????? | | ?# #????????# #??????????????????????????????????? | | ?# T????????# #??????????????????????????????????? | | ?# #????????# #??????????????????????????????????? | | ?# #????????# #??????????????????????????????????? | | ?# #?######?# #??????????????????????????????????? | | ## ### ## ### ###????????????????????????????????? | | "" "" "" ""#????????????????????????????????? | | " " " #????????????????????????????????? | | % "????????????????????????????????? | | / ##???????????????????????????????? | | ;;################???????????????? | | ss % @ ????????? | | s ????????? | | % ????????? | | ?????????? | | u ?????????? | | B ##;####################??????????? | | B ####?????????????????????????????? | | #????????????????????????????????? | | #????????????????????????????????? | | #????????????????????????????????? | | # ### #"""#######????????????????????????????????? | | ###?###??????????????????????????????????????????? | | ?????????????????????????????????????????????????? | | | | | | | | | | | | | | | | | | | | | | | | | +----------------------------------------------------+ Best States ------------- Heat Dissipation 76 Energy Generation 37 Energy Capacity 550 Matter Stores 300 Matter Capacity 300 Sight Range 22 Robot Scan Range 16 Terrain Scan Range 20 Terrain Scan Density 160 Jamming Range 12 Cloak Strength 3 Additional Mass Support 9 Base Temperature (-) 200 Armor Coverage 225 Resistance: TH 20 Weapon Cycling 15 Evasion (%) 64 Targeting Accuracy 32 Core Analysis 9 Recoil Reduction 2 Offensive Hacking 10 Authchip Count 1 Item Schematics ----------------- Imp. Terrain Scanner | -9/Materials | Scanalyzed EM Shotgun | -9/Materials | Scanalyzed Robot Schematics ------------------ None Fabricated ------------ Antimatter Reactor | x2 | -7/Factory | Preloaded R-10 Processor | x1 | -6/Factory | Preloaded Imp. Terrain Scanner | x2 | -6/Factory Alien Tech Used ----------------- None Achievements -------------- None Challenges ------------ None Game ------ Seed DefenseFlightHumpback Manual? 0 Play Time 02:07:21 Cumulative 48.9 hours Start 2023.03.15 @ 13:15:54 End 2023.03.15 @ 15:38:00 Sessions 1 Manual Loads 0 Difficulty Rogue Special Mode None Game No. 64 Rogue 63 Adventurer 1 Explorer 0 Win Type - Total 0 Types 0/0/0/0/0/0/0/0/0 Lore% 23 Gallery% 42 Achievement% 32 Wizard Run 0 Options --------- ASCII 0 Keyboard 0 Movement Mouse Keybinds 0 Fullscreen 1 Font 36/Smallcaps Map View 76x50 Tactical HUD 1 Map Filters NONE Filters NONE Steam 1 RUN: e0a66ec9-77df-411c-b420-3b38e31be152